fUSD/lending_fUSD_20250221
["ID","MTS","AMOUNT","RATE_DAILY","PERIOD"]
[353911128,1740131444329,-196.004161,0.00012394,2]
[353911130,1740131444338,-151.0,0.00012394,2]
[353911132,1740131444347,-151.0,0.00012394,2]
[353911134,1740131444357,-151.0,0.00012394,2]
[353911136,1740131444366,-151.0,0.00012394,2]
[353911138,1740131444375,-151.0,0.00012394,2]
[353911140,1740131444384,-151.41176,0.00012394,2]
[353911142,1740131444393,-151.0,0.00012394,2]
[353911144,1740131444402,-151.0,0.00012394,2]
[353911146,1740131444413,-151.0,0.00012394,2]
[353911148,1740131444422,-151.0,0.00012394,2]
[353911150,1740131444434,-219.680566,0.00012394,2]
[353911152,1740131444443,-219.680566,0.00012394,2]
[353911154,1740131444452,-219.680566,0.00012394,2]
[353911156,1740131444461,-219.680566,0.00012394,2]
[353911158,1740131444472,-151.0,0.00012394,2]
[353911159,1740131444481,-151.0,0.00012394,2]
[353911162,1740131444491,-176.973013,0.00012394,2]
[353911163,1740131444500,-176.973013,0.00012394,2]
[353911165,1740131444510,-176.973013,0.00012394,2]
[353911167,1740131444520,-176.973013,0.00012394,2]
[353911169,1740131444530,-151.0,0.00012394,2]
[353911171,1740131444540,-151.0,0.00012394,2]
[353911173,1740131444549,-151.0,0.00012394,2]
[353911176,1740131444561,-151.0,0.00012394,2]
[353911178,1740131444571,-151.0,0.00012394,2]
[353911180,1740131444580,-2187.85977,0.00012394,2]
[353911182,1740131444590,-2187.85977,0.00012394,2]
[353911184,1740131444600,-2187.85977,0.00012394,2]
[353911186,1740131444610,-2187.85977,0.00012394,2]
[353911188,1740131444620,-2187.85977,0.00012394,2]
[353911190,1740131444629,-2187.85977,0.00012394,2]
[353911192,1740131444638,-177.183037,0.00012394,2]
[353911194,1740131444647,-177.183037,0.00012394,2]
[353911196,1740131444655,-177.183037,0.00012394,2]
[353911198,1740131444664,-177.183037,0.00012394,2]
[353911200,1740131444673,-177.183037,0.00012394,2]
[353911202,1740131444683,-177.183037,0.00012394,2]
[353911204,1740131444692,-168.621164,0.00012394,2]
[353911206,1740131444701,-168.621164,0.00012394,2]
[353911208,1740131444710,-168.621164,0.00012394,2]
[353911210,1740131444719,-168.621164,0.00012394,2]
[353911212,1740131444728,-168.621164,0.00012394,2]
[353911214,1740131444737,-168.621164,0.00012394,2]
[353911216,1740131444746,-151.0,0.00012394,2]
[353911218,1740131444756,-151.0,0.00012394,2]
[353911220,1740131444765,-151.0,0.00012394,2]
[353911222,1740131444774,-151.0,0.00012394,2]
[353911224,1740131444784,-204.073027,0.00012394,2]
[353911226,1740131444794,-151.0,0.00012394,2]
[353911228,1740131444803,-151.0,0.00012394,2]
[353911230,1740131444812,-151.0,0.00012394,2]
[353911232,1740131444822,-151.0,0.00012394,2]
[353911234,1740131444831,-151.0,0.00012394,2]
[353911236,1740131444840,-196.773329,0.00012394,2]
[353911237,1740131444850,-236.275075,0.00012394,2]
[353911238,1740131444859,-236.275075,0.00012394,2]
[353911239,1740131444868,-236.275075,0.00012394,2]
[353911240,1740131444877,-236.275075,0.00012394,2]
[353911241,1740131444886,-236.275075,0.00012394,2]
[353911242,1740131444895,-236.275075,0.00012394,2]
[353911243,1740131444904,-276.38028,0.00012394,2]
[353911244,1740131444913,-276.38028,0.00012394,2]
[353911245,1740131444922,-276.38028,0.00012394,2]
[353911246,1740131444931,-151.0,0.00012394,2]
[353911248,1740131444940,-151.0,0.00012394,2]
[353911250,1740131444948,-151.0,0.00012394,2]
[353911251,1740131444957,-276.38028,0.00012394,2]
[353911252,1740131444966,-276.38028,0.00012394,2]
[353911253,1740131444975,-276.38028,0.00012394,2]
[353911254,1740131444984,-151.0,0.00012394,2]
[353911255,1740131444993,-151.0,0.00012394,2]
[353911256,1740131445002,-151.0,0.00012394,2]
[353911257,1740131445010,-151.0,0.00012394,2]
[353911258,1740131445019,-151.0,0.00012394,2]
[353911259,1740131445028,-151.0,0.00012394,2]
[353911260,1740131445037,-151.0,0.00012394,2]
[353911261,1740131445046,-151.0,0.00012394,2]
[353911262,1740131445055,-151.0,0.00012394,2]
[353911263,1740131445064,-151.0,0.00012394,2]
[353911264,1740131445072,-151.0,0.00012394,2]
[353911265,1740131445082,-151.0,0.00012394,2]
[353911266,1740131445091,-151.0,0.00012394,2]
[353911267,1740131445100,-151.0,0.00012394,2]
[353911268,1740131445108,-151.0,0.00012394,2]
[353911269,1740131445117,-151.0,0.00012394,2]
[353911270,1740131445126,-151.0,0.00012394,2]
[353911271,1740131445135,-151.0,0.00012394,2]
[353911272,1740131445144,-151.0,0.00012394,2]
[353911273,1740131445153,-151.0,0.00012394,2]
[353911274,1740131445162,-151.0,0.00012394,2]
[353911275,1740131445170,-151.0,0.00012394,2]
[353911277,1740131445179,-151.0,0.00012394,2]
[353911278,1740131445189,-151.0,0.00012394,2]
[353911279,1740131445198,-151.0,0.00012394,2]
[353911280,1740131445208,-151.0,0.00012394,2]
[353911281,1740131445217,-151.0,0.00012394,2]
[353911282,1740131445226,-151.0,0.00012394,2]
[353911284,1740131445236,-151.0,0.00012394,2]
[353911286,1740131445246,-151.0,0.00012394,2]
[353911287,1740131445255,-151.0,0.00012394,2]
[353911288,1740131445264,-151.0,0.00012394,2]
[353911289,1740131445273,-151.0,0.00012394,2]
[353911290,1740131445282,-151.0,0.00012394,2]
[353911291,1740131445293,-151.0,0.00012394,2]
[353911293,1740131445304,-151.0,0.00012394,2]
[353911294,1740131445313,-151.0,0.00012394,2]
[353911296,1740131445322,-151.0,0.00012394,2]
[353911298,1740131445331,-151.0,0.00012394,2]
[353911300,1740131445341,-151.0,0.00012394,2]
[353911302,1740131445351,-151.0,0.00012394,2]
[353911303,1740131445361,-151.0,0.00012394,2]
[353911304,1740131445371,-151.0,0.00012394,2]
[353911305,1740131445380,-151.0,0.00012394,2]
[353911306,1740131445390,-151.0,0.00012394,2]
[353911307,1740131445399,-151.0,0.00012394,2]
[353911308,1740131445410,-151.0,0.00012394,2]
[353911309,1740131445423,-151.0,0.00012394,2]
[353911310,1740131445432,-151.0,0.00012394,2]
[353911311,1740131445441,-151.0,0.00012394,2]
[353911312,1740131445451,-151.0,0.00012394,2]
[353911313,1740131445461,-151.0,0.00012394,2]
[353911314,1740131445471,-151.0,0.00012394,2]
[353911315,1740131445480,-151.0,0.00012394,2]
[353911316,1740131445491,-151.0,0.00012394,2]
[353911317,1740131445500,-151.0,0.00012394,2]
[353911318,1740131445510,-151.0,0.00012394,2]
[353911319,1740131445520,-151.0,0.00012394,2]
[353911320,1740131445529,-151.0,0.00012394,2]
[353911321,1740131445539,-151.0,0.00012394,2]
[353911322,1740131445548,-151.0,0.00012394,2]
[353911323,1740131445557,-151.0,0.00012394,2]
[353911324,1740131445566,-151.0,0.00012394,2]
[353911325,1740131445576,-151.0,0.00012394,2]
[353911326,1740131445585,-151.0,0.00012394,2]
[353911327,1740131445595,-151.0,0.00012394,2]
[353911328,1740131445604,-151.0,0.00012394,2]
[353911329,1740131445614,-151.0,0.00012394,2]
[353911330,1740131445623,-151.0,0.00012394,2]
[353911331,1740131445632,-151.0,0.00012394,2]
[353911332,1740131445642,-151.0,0.00012394,2]
[353911333,1740131445651,-151.0,0.00012394,2]
[353911334,1740131445660,-151.0,0.00012394,2]
[353911335,1740131445670,-151.0,0.00012394,2]
[353911336,1740131445679,-151.0,0.00012394,2]
[353911337,1740131445688,-151.0,0.00012394,2]
[353911338,1740131445698,-151.0,0.00012394,2]
[353911339,1740131445707,-151.0,0.00012394,2]
[353911340,1740131445717,-151.0,0.00012394,2]
[353911341,1740131445726,-151.0,0.00012394,2]
[353911342,1740131445735,-151.0,0.00012394,2]
[353911343,1740131445745,-189.456819,0.00012394,2]
[353911344,1740131445755,-151.0,0.00012394,2]
[353911345,1740131445764,-151.0,0.00012394,2]
[353911346,1740131445774,-151.0,0.00012394,2]
[353911347,1740131445783,-151.0,0.00012394,2]
[353911348,1740131445792,-151.0,0.00012394,2]
[353911349,1740131445802,-151.0,0.00012394,2]
[353911350,1740131445812,-216.45306,0.00012394,2]
[353911351,1740131445821,-216.45306,0.00012394,2]
[353911352,1740131445830,-216.45306,0.00012394,2]
[353911353,1740131445840,-216.45306,0.00012394,2]
[353911354,1740131445849,-216.45306,0.00012394,2]
[353911355,1740131445858,-216.45306,0.00012394,2]
[353911356,1740131445867,-151.0,0.00012394,2]
[353911357,1740131445876,-151.0,0.00012394,2]
[353911358,1740131445887,-151.0,0.00012394,2]
[353911359,1740131445896,-403.294123,0.00012394,2]
[353911360,1740131445906,-403.294123,0.00012394,2]
[353911361,1740131445915,-403.294123,0.00012394,2]
[353911362,1740131445924,-403.294123,0.00012394,2]
[353911363,1740131445934,-403.294123,0.00012394,2]
[353911364,1740131445943,-403.294123,0.00012394,2]
[353911365,1740131445952,-1050.71954,0.00012394,2]
[353911366,1740131445962,-1050.71954,0.00012394,2]
[353911367,1740131445971,-1050.71954,0.00012394,2]
[353911369,1740131445980,-557.398412,0.00012394,2]
[353911370,1740131445989,-1050.71954,0.00012394,2]
[353911371,1740131445998,-557.398412,0.00012394,2]
[353911372,1740131446007,-1050.71954,0.00012394,2]
[353911373,1740131446016,-557.398412,0.00012394,2]
[353911374,1740131446024,-1050.71954,0.00012394,2]
[353911375,1740131446033,-557.398412,0.00012394,2]
[353911376,1740131446042,-557.398412,0.00012394,2]
[353911377,1740131446051,-557.398412,0.00012394,2]
[353911378,1740131446060,-151.0,0.00012394,2]
[353911379,1740131446069,-218111.64149027,0.00012395,4]
[353911381,1740131446298,-634.46219835,0.00012395,4]
[353911382,1740131446326,-418288.25381105,0.00012395,4]
[353911383,1740131446342,-30285.78233956,0.00012395,4]
[353911384,1740131446351,-151.0,0.00012395,2]
[353911385,1740131446361,-151.0,0.00012395,2]
[353911386,1740131446373,-151.0,0.00012395,2]
[353911387,1740131446538,-158.374167,0.00012395,2]
[353911388,1740131446548,-290.394704,0.00012395,2]
[353911389,1740131446558,-290.394704,0.00012395,2]
[353911390,1740131446567,-151.0,0.00012395,2]
[353911391,1740131446576,-151.0,0.00012395,2]
[353911392,1740131446586,-151.0,0.00012395,2]
[353911393,1740131446596,-151.0,0.00012395,2]
[353911394,1740131446605,-408.104241,0.00012395,2]
[353911395,1740131446614,-408.104241,0.00012395,2]
[353911396,1740131446623,-151.0,0.00012395,2]
[353911397,1740131446633,-151.255847,0.00012395,2]
[353911398,1740131446642,-151.0,0.00012395,2]
[353911399,1740131446651,-153.329253,0.00012395,2]
[353911400,1740131446660,-151.0,0.00012395,2]
[353911401,1740131446670,-151.0,0.00012395,2]
[353911402,1740131446679,-151.0,0.00012395,2]
[353911403,1740131446688,-244.460273,0.00012395,2]
[353911404,1740131446697,-151.0,0.00012395,2]
[353911405,1740131446706,-151.0,0.00012395,2]
[353911406,1740131446715,-2348.653548,0.00012395,2]
[353911407,1740131446724,-2348.653548,0.00012395,2]
[353911408,1740131446733,-151.0,0.00012395,2]
[353911409,1740131446742,-198.008296,0.00012395,2]
[353911410,1740131446751,-198.008296,0.00012395,2]
[353911411,1740131446760,-151.0,0.00012395,2]
[353911412,1740131446769,-151.0,0.00012395,2]
[353911413,1740131446778,-200.90078,0.00012395,2]
[353911414,1740131446787,-293.546928,0.00012395,2]
[353911415,1740131446796,-180.866542,0.00012395,2]
[353911416,1740131446805,-372.02832,0.00012395,2]
[353911417,1740131446815,-181.398572,0.00012395,2]
[353911418,1740131446824,-372.02832,0.00012395,2]
[353911419,1740131446833,-181.398572,0.00012395,2]
[353911420,1740131446843,-267.82602,0.00012395,2]
[353911421,1740131446852,-151.0,0.00012395,2]
[353911422,1740131446862,-241.675436,0.00012395,2]
[353911423,1740131446871,-151.0,0.00012395,2]
[353911424,1740131446881,-217.251512,0.00012395,2]
[353911425,1740131446890,-174.155512,0.00012395,2]
[353911426,1740131446899,-217.251512,0.00012395,2]
[353911427,1740131446908,-174.155512,0.00012395,2]
[353911428,1740131446918,-151.0,0.00012395,2]
[353911429,1740131446927,-151.0,0.00012395,2]
[353911430,1740131446936,-151.0,0.00012395,2]
[353911431,1740131446946,-189.793205,0.00012395,2]
[353911432,1740131446956,-151.0,0.00012395,2]
[353911433,1740131446966,-196.004161,0.00012395,2]
[353911434,1740131446975,-196.004161,0.00012395,2]
[353911435,1740131446984,-151.0,0.00012395,2]
[353911436,1740131446994,-151.0,0.00012395,2]
[353911437,1740131447003,-151.0,0.00012395,2]
[353911438,1740131447012,-151.0,0.00012395,2]
[353911439,1740131447021,-219.680566,0.00012395,2]
[353911440,1740131447031,-219.680566,0.00012395,2]
[353911441,1740131447041,-151.0,0.00012395,2]
[353911442,1740131447050,-176.973013,0.00012395,2]
[353911443,1740131447060,-176.973013,0.00012395,2]
[353911444,1740131447069,-151.0,0.00012395,2]
[353911445,1740131447078,-151.0,0.00012395,2]
[353911446,1740131447087,-2187.85977,0.00012395,2]
[353911447,1740131447097,-2187.85977,0.00012395,2]
[353911448,1740131447107,-177.183037,0.00012395,2]
[353911449,1740131447116,-177.183037,0.00012395,2]
[353911450,1740131447126,-168.621164,0.00012395,2]
[353911451,1740131447135,-168.621164,0.00012395,2]
[353911452,1740131447145,-151.0,0.00012395,2]
[353911453,1740131447154,-151.0,0.00012395,2]
[353911454,1740131447163,-236.275075,0.00012395,2]
[353911455,1740131447172,-236.275075,0.00012395,2]
[353911456,1740131447181,-276.38028,0.00012395,2]
[353911457,1740131447191,-151.0,0.00012395,2]
[353911458,1740131447200,-276.38028,0.00012395,2]
[353911459,1740131447209,-151.0,0.00012395,2]
[353911460,1740131447218,-151.0,0.00012395,2]
[353911461,1740131447227,-216.45306,0.00012395,2]
[353911462,1740131447236,-216.45306,0.00012395,2]
[353911463,1740131447246,-151.0,0.00012395,2]
[353911464,1740131447255,-403.294123,0.00012395,2]
[353911465,1740131447264,-403.294123,0.00012395,2]
[353911466,1740131447273,-1050.71954,0.00012395,2]
[353911467,1740131447283,-557.398412,0.00012395,2]
[353911468,1740131447293,-1050.71954,0.00012395,2]
[353911469,1740131447303,-557.398412,0.00012395,2]
[353911470,1740131447313,-1313.52087338,0.00012396,3]
[353911471,1740131447322,-151.0,0.00012398,2]
[353911472,1740131447331,-151.0,0.00012398,2]
[353911473,1740131447341,-151.0,0.00012398,2]
[353911474,1740131447350,-290.394704,0.00012398,2]
[353911475,1740131447359,-290.394704,0.00012398,2]
[353911476,1740131447368,-151.0,0.00012398,2]
[353911477,1740131447377,-151.0,0.00012398,2]
[353911478,1740131447387,-151.0,0.00012398,2]
[353911479,1740131447396,-151.0,0.00012398,2]
[353911480,1740131447405,-408.104241,0.00012398,2]
[353911481,1740131447418,-408.104241,0.00012398,2]
[353911482,1740131447429,-700.0,0.00012434,2]
[353911483,1740131447438,-157.0,0.00012466,2]
[353911484,1740131447447,-1899.59999898,0.00012596,2]
[353911485,1740131447456,-6039.51053799,0.00012597,2]
[353911486,1740131447465,-151.0,0.00012599,2]
[353911487,1740131447474,-300.55444405,0.000127,2]
[353911488,1740131447483,-800.0,0.00012708,2]
[353911489,1740131447493,-1727.87918702,0.00012731,2]
[353911490,1740131447503,-4752.7159353,0.00012753,2]
[353911491,1740131447512,-345.19469299,0.00012753,2]
[353911492,1740131447521,-2265.87363376,0.00012762,10]
[353911493,1740131447530,-167.37926543,0.00012773,2]
[353911494,1740131447539,-194.85968399,0.00012778,2]
[353911495,1740131447548,-175.32,0.0001278,2]
[353911496,1740131447558,-151.0,0.00012782,2]
[353911497,1740131447567,-151.0,0.00012782,2]
[353911498,1740131447576,-2348.653548,0.00012782,2]
[353911499,1740131447585,-2348.653548,0.00012782,2]
[353911500,1740131447594,-151.0,0.00012782,2]
[353911501,1740131447603,-372.02832,0.00012782,2]
[353911502,1740131447612,-372.02832,0.00012782,2]
[353911503,1740131447621,-151.0,0.00012782,2]
[353911504,1740131447631,-151.0,0.00012782,2]
[353911505,1740131447639,-217.251512,0.00012782,2]
[353911506,1740131447648,-174.155512,0.00012782,2]
[353911507,1740131447657,-217.251512,0.00012782,2]
[353911508,1740131447666,-174.155512,0.00012782,2]
[353911509,1740131447675,-252.996345,0.00012782,2]
[353911510,1740131447683,-151.0,0.00012782,2]
[353911511,1740131447692,-151.0,0.00012782,2]
[353911512,1740131447701,-151.0,0.00012782,2]
[353911513,1740131447710,-196.004161,0.00012782,2]
[353911514,1740131447719,-196.004161,0.00012782,2]
[353911515,1740131447728,-292.407244,0.00012782,2]
[353911516,1740131447737,-151.0,0.00012782,2]
[353911517,1740131447747,-151.0,0.00012782,2]
[353911518,1740131447755,-151.0,0.00012782,2]
[353911519,1740131447764,-219.680566,0.00012782,2]
[353911520,1740131447774,-219.680566,0.00012782,2]
[353911521,1740131447783,-151.0,0.00012782,2]
[353911522,1740131447792,-176.973013,0.00012782,2]
[353911523,1740131447801,-176.973013,0.00012782,2]
[353911524,1740131447810,-151.0,0.00012782,2]
[353911525,1740131447819,-2187.85977,0.00012782,2]
[353911526,1740131447828,-2187.85977,0.00012782,2]
[353911527,1740131447837,-177.183037,0.00012782,2]
[353911528,1740131447846,-177.183037,0.00012782,2]
[353911529,1740131447855,-168.621164,0.00012782,2]
[353911530,1740131447864,-168.621164,0.00012782,2]
[353911531,1740131447874,-151.0,0.00012782,2]
[353911532,1740131447883,-372.8735415,0.00012782,2]
[353911533,1740131447892,-151.0,0.00012782,2]
[353911534,1740131447901,-286.965328,0.00012782,2]
[353911535,1740131447910,-558.48419852,0.00012782,2]
[353911536,1740131447919,-216.45306,0.00012782,2]
[353911537,1740131447928,-216.45306,0.00012782,2]
[353911538,1740131447938,-151.0,0.00012782,2]
[353911539,1740131447947,-403.294123,0.00012782,2]
[353911540,1740131447956,-403.294123,0.00012782,2]
[353911541,1740131447966,-1050.71954,0.00012782,2]
[353911542,1740131447975,-557.398412,0.00012782,2]
[353911543,1740131447985,-1050.71954,0.00012782,2]
[353911544,1740131447994,-557.398412,0.00012782,2]
[353911545,1740131448003,-151.0,0.0001279,2]
[353911546,1740131448012,-151.0,0.00012791,2]
[353911547,1740131448021,-198.008296,0.00012791,2]
[353911548,1740131448030,-198.008296,0.00012791,2]
[353911549,1740131448040,-151.0,0.00012791,2]
[353911550,1740131448049,-181.398572,0.00012791,2]
[353911551,1740131448058,-181.398572,0.00012791,2]
[353911552,1740131448067,-151.225018,0.00012791,2]
[353911553,1740131448076,-236.275075,0.00012791,2]
[353911554,1740131448086,-236.275075,0.00012791,2]
[353911555,1740131448095,-276.38028,0.00012791,2]
[353911556,1740131448104,-151.0,0.00012791,2]
[353911557,1740131448113,-276.38028,0.00012791,2]
[353911558,1740131448123,-374.0460525,0.00012791,2]
[353911559,1740131448132,-4767.6609804,0.00012791,2]
[353911560,1740131448141,-151.0,0.00012799,2]
[353911561,1740131448150,-151.0,0.00012799,2]
[353911562,1740131448160,-151.0,0.00012799,2]
[353911563,1740131448169,-275.718836,0.00012799,2]
[353911564,1740131448179,-500.0,0.00012799,2]
[353911565,1740131448188,-660410.85440731,0.000128,2]
[353911566,1740131448381,-921.4999995,0.000128,2]
[353911567,1740131448392,-268.987887,0.000128,2]
[353911568,1740131448403,-1637.40439275,0.000128,2]
[353911569,1740131448419,-353131.11620164,0.000128,2]
[353911570,1740131448537,-2465.18803461,0.000128,2]
[353911571,1740131448553,-3559.38159001,0.000128,2]
[353911572,1740131448564,-337.82000013,0.000128,2]
[353911573,1740131448585,-5251.25746484,0.000128,2]
[353911595,1740131611983,159.71,8.767e-05,2]
[353911632,1740132631744,-310.27593496,9.776e-05,2]
[353911633,1740132631799,-223.46406504,9.776e-05,2]
[353911634,1740132631809,-600.0,0.00011064,2]
[353911635,1740132631819,-500.0,0.00011064,2]
[353911636,1740132631828,-600.0,0.00011064,2]
[353911637,1740132631838,-505.03,0.00011064,2]
[353911638,1740132631847,-497.54,0.00011064,2]
[353911639,1740132631856,-509.49,0.00011064,2]
[353911640,1740132631865,-495.39,0.00011064,2]
[353911641,1740132631875,-505.55,0.00011064,2]
[353911642,1740132631885,-174.26,0.00011684,2]
[353911643,1740132631895,-157.6892,0.000117,2]
[353911644,1740132631904,-1000.0,0.00011759,2]
[353911646,1740132631914,-500.0,0.000118,2]
[353911648,1740132631923,-762.72,0.000118,2]
[353911650,1740132631932,-533.74,0.0001204,2]
[353911652,1740132631941,-150.0,0.0001217,2]
[353911654,1740132631950,-923.1314,0.00012194,2]
[353911655,1740132631959,-498.66,0.00012368,2]
[353911657,1740132631969,-493.55,0.00012379,2]
[353911659,1740132631979,-508.41,0.00012394,2]
[353911661,1740132631988,-508.19,0.00012394,2]
[353911664,1740132631998,-191.707706,0.00012394,2]
[353911666,1740132632007,-151.0,0.00012394,2]
[353911667,1740132632017,-151.0,0.00012394,2]
[353911670,1740132632028,-151.0,0.00012394,2]
[353911672,1740132632037,-151.0,0.00012394,2]
[353911673,1740132632046,-151.0,0.00012394,2]
[353911675,1740132632055,-178.917584,0.00012394,2]
[353911677,1740132632064,-151.0,0.00012395,2]
[353911680,1740132632073,-600.0,0.00012434,2]
[353911681,1740132632084,-600.0,0.00012434,2]
[353911684,1740132632096,-396.058495,0.00012544,2]
[353911686,1740132632105,-150.0,0.00012599,2]
[353911688,1740132632115,-4843.536,0.000126,2]
[353911690,1740132632124,-2012.4887,0.000126,2]
[353911692,1740132632134,-194.85968399,0.000126,2]
[353911695,1740132632143,-200.0,0.00012692,2]
[353911698,1740132632153,-500.0,0.00012698,2]
[353911701,1740132632162,-2000.0,0.00012698,2]
[353911704,1740132632171,-200.0,0.00012698,2]
[353911707,1740132632180,-1992.446,0.00012698,2]
[353911710,1740132632189,-176.053,0.00012698,2]
[353911713,1740132632198,-344.9045,0.000127,2]
[353911716,1740132632207,-305.7544,0.000127,2]
[353911719,1740132632216,-8778.22,0.000127,2]
[353911722,1740132632226,-733.9755,0.000127,2]
[353911724,1740132632235,-500.0,0.000127,2]
[353911727,1740132632245,-85752.2029,0.000127,2]
[353911730,1740132632255,-209212.528,0.000127,2]
[353911733,1740132632264,-2634.1349,0.000127,2]
[353911736,1740132632274,-2185.05210929,0.000127,2]
[353911738,1740132632284,-1257.36978966,0.00012701,2]
[353911741,1740132632293,-151.0,0.00012782,2]
[353911744,1740132632302,-4489.8140453,0.00012791,2]
[353911746,1740132632311,-251.31822,0.00012791,2]
[353911749,1740132632321,-195.0,0.000128,3]
[353911753,1740132632330,-347040.33350125,0.000128,2]
[353911755,1740132632339,-151.0,0.000128,2]
[353911758,1740132632349,-151.0,0.000128,2]
[353911761,1740132632358,-151.0,0.000128,2]
[353911764,1740132632367,-236.275075,0.000128,2]
[353911767,1740132632376,-236.275075,0.000128,2]
[353911770,1740132632386,-151.0,0.000128,2]
[353911773,1740132632395,-151.0,0.000128,2]
[353911775,1740132632404,-216.45306,0.000128,2]
[353911777,1740132632413,-216.45306,0.000128,2]
[353911779,1740132632422,-151.0,0.000128,2]
[353911781,1740132632431,-200.0,0.000128,2]
[353911783,1740132632441,-200.0,0.000128,2]
[353911785,1740132632450,-200.0,0.000128,2]
[353911787,1740132632459,-200.0,0.000128,4]
[353911789,1740132632469,-786.05767,0.000128,2]
[353911791,1740132632478,-200.0,0.000128,2]
[353911793,1740132632487,-2946.0,0.000128,5]
[353911795,1740132632496,-2185.05210926,0.00012811,2]
[353911797,1740132632505,-1449.24611514,0.00012846,2]
[353911799,1740132632515,-2592.88783004,0.0001288,2]
[353911801,1740132632524,-200.56199111,0.00012893,2]
[353911803,1740132632534,-500.0,0.00012893,2]
[353911805,1740132632542,-1168.0,0.00012893,2]
[353911807,1740132632552,-366.56572608,0.000129,2]
[353911809,1740132632561,-7500.0,0.000129,2]
[353911811,1740132632570,-500.0,0.000129,4]
[353911813,1740132632579,-165.1905457,0.000129,2]
[353911815,1740132632589,-500.0,0.0001292,2]
[353911816,1740132632598,-1168.0,0.0001292,2]
[353911818,1740132632606,-2185.05210926,0.00012922,2]
[353911820,1740132632615,-200.0,0.00012928,2]
[353911822,1740132632625,-200.0,0.00012928,2]
[353911824,1740132632634,-200.0,0.00012928,2]
[353911826,1740132632642,-200.0,0.00012928,2]
[353911828,1740132632651,-500.0,0.00012948,2]
[353911830,1740132632661,-1168.0,0.00012948,2]
[353911832,1740132632671,-1208.25971569,0.00012953,2]
[353911834,1740132632680,-500.0,0.00012975,2]
[353911836,1740132632689,-1168.0,0.00012975,2]
[353911838,1740132632698,-1115.0,0.00013,2]
[353911839,1740132632708,-221572.22578866,0.00013,5]
[353911840,1740132632717,-511.09,0.00013,3]
[353911846,1740132632904,-1000.0,0.00013,2]
[353911849,1740132632914,-1000.0,0.00013,2]
[353911851,1740132632923,-846.0,0.00013,3]
[353911852,1740132632932,-1000.0,0.00013,3]
[353911855,1740132632942,-1000.0,0.00013,2]
[353911857,1740132632951,-1000.0,0.00013,2]
[353911858,1740132632960,-1000.0,0.00013,2]
[353911860,1740132632970,-1000.0,0.00013,2]
[353911862,1740132632980,-1000.0,0.00013,2]
[353911864,1740132632990,-1000.0,0.00013,2]
[353911866,1740132632999,-1165.0,0.00013,2]
[353911868,1740132633009,-1000.0,0.00013,3]
[353911870,1740132633018,-57835.41,0.00013,5]
[353911872,1740132633027,-151.0,0.00013,2]
[353911874,1740132633037,-151.0,0.00013,2]
[353911876,1740132633047,-151.0,0.00013,2]
[353911878,1740132633057,-151.0,0.00013,2]
[353911880,1740132633067,-151.0,0.00013,2]
[353911882,1740132633077,-151.0,0.00013,2]